bitfinex-derivatives/quotes_ETHF0:USTF0_20250804
["timestamp","ask_amount","ask_price","bid_price","bid_amount"]
[1754312140302,20.5081,3565.5,3565.4,1.0169]
[1754312141290,20.6386,3565.5,3565.4,1.0169]
[1754312141493,20.6386,3565.5,3565.0,0.85996]
[1754312141701,0.7212,3565.1,3565.0,0.4097]
[1754312141894,21.06146,3565.1,3565.0,0.4097]
[1754312142193,20.5005,3565.1,3565.0,0.8776]
[1754312142386,20.5005,3565.1,3565.0,1.4828]
[1754312142797,20.5005,3565.1,3565.0,0.3062]
[1754312143096,20.5005,3565.1,3565.0,1.4828]
[1754312143586,20.5005,3565.1,3565.0,1.7994]
[1754312144392,20.3359,3565.1,3565.0,1.7994]
[1754312144997,19.9264,3565.1,3565.0,1.7994]
[1754312145294,0.4377,3565.4,3565.3,0.76492]
[1754312145499,19.9244,3565.4,3565.3,2.36032]
[1754312145698,20.3339,3565.4,3565.3,2.36032]
[1754312145898,20.4985,3565.4,3565.3,2.36032]
[1754312149100,20.4985,3565.4,3565.3,1.7994]
[1754312149903,4.60987,3566.0,3565.3,0.7669]
[1754312149904,3.2078,3566.0,3565.3,0.7669]
[1754312150197,4.08026,3566.4,3566.3,0.7263]
[1754312150393,23.28691058,3566.4,3566.3,1.3315]
[1754312150588,22.53751058,3566.4,3566.3,1.7994]
[1754312151196,23.28691058,3566.4,3566.3,1.7994]
[1754312152197,23.69641058,3566.4,3566.3,1.0149]
[1754312152499,23.86101058,3566.4,3566.3,1.0149]
[1754312152900,23.86101058,3566.4,3566.3,1.4828]
[1754312153096,23.86101058,3566.4,3566.3,1.7994]
[1754312154998,22.84921058,3566.4,3566.3,1.7994]
[1754312155301,23.28691058,3566.4,3566.3,1.7994]
[1754312155603,22.84921058,3566.4,3566.3,1.7994]
[1754312155901,19.177,3566.4,3566.3,1.7994]
[1754312156802,0.4377,3566.7,3566.6,1.7994]
[1754312156803,0.9583,3566.7,3566.6,1.7994]
[1754312157000,20.4945,3566.7,3566.6,1.7994]
[1754312159200,20.64745344,3566.7,3566.6,1.0149]
[1754312159401,1.47645344,3566.7,3566.6,1.0149]
[1754312159602,1.47645344,3566.7,3566.6,0.6052]
[1754312159898,20.77795344,3566.7,3566.6,0.3062]
[1754312160302,21.52488803,3566.7,3566.6,0.3062]
[1754312161307,21.52501509,3566.7,3566.6,0.3062]
[1754312162011,20.50871509,3566.7,3566.3,0.56076]
[1754312162306,20.50871509,3566.7,3566.5,1.57563]
[1754312162307,0.56072,3566.6,3566.5,1.57563]
[1754312162503,1.31012,3566.6,3566.5,2.36013]
[1754312162906,0.7494,3566.6,3566.5,2.36013]
[1754312163203,0.90247015,3566.6,3566.5,2.36013]
[1754312164310,1.11137015,3566.6,3566.5,2.36013]
[1754312164905,1.47657015,3566.6,3566.5,2.36013]
[1754312165809,1.47657015,3566.6,3566.5,1.3315]
[1754312166210,1.3235,3566.6,3566.5,1.3315]
[1754312167014,1.3235,3566.6,3566.5,1.0149]
[1754312170111,1.3235,3566.6,3566.5,1.4502]
[1754312170305,1.3235,3566.6,3566.5,1.7528]
[1754312171912,1.3235,3566.6,3566.4,0.56074]
[1754312171913,1.88463,3566.6,3566.4,0.56075]
[1754312172113,20.4699,3566.5,3566.4,0.56075]
[1754312172323,20.4699,3566.5,3566.4,1.07075]
[1754312172615,20.4699,3566.5,3566.4,1.57135]
[1754312173020,20.4699,3566.5,3566.4,0.86495]
[1754312173217,20.4699,3566.5,3566.4,0.3042]
[1754312173419,20.6002,3566.5,3566.4,0.3042]
[1754312173724,20.6002,3566.5,3566.4,0.8047]
[1754312174222,20.6002,3566.5,3566.4,1.0106]
[1754312174518,20.4699,3566.5,3566.4,1.0106]
[1754312174824,21.03065,3566.5,3566.3,0.56076]
[1754312175120,1.4312,3566.4,3566.3,1.26716]
[1754312175321,1.3009,3566.4,3566.3,0.7064]
[1754312175525,1.3009,3566.4,3566.3,1.0106]
[1754312175820,1.1365,3566.4,3566.3,1.3132]
[1754312176022,1.1365,3566.4,3566.3,1.7485]
[1754312177227,1.86166,3566.4,3566.3,1.7485]
[1754312178234,1.1365,3566.4,3566.3,1.7485]
[1754312178427,20.1033,3566.4,3566.3,1.7485]
[1754312179127,3.6415,3566.9,3566.4,1.0342]
[1754312179316,3.2078,3566.9,3566.8,1.7485]
[1754312179522,0.90190614,3566.9,3566.8,1.7485]
[1754312179727,18.3858,3566.9,3566.8,1.7485]
[1754312179919,18.1951,3566.9,3566.8,1.7485]
[1754312180223,18.1951,3566.9,3566.8,2.30919]
[1754312180628,19.167,3567.0,3566.8,0.56069]
[1754312180825,0.3024,3567.2,3567.1,0.56064]
[1754312181023,19.4684,3567.2,3567.1,0.56064]
[1754312181224,0.3024,3567.2,3567.1,0.56064]
[1754312181425,19.4684,3567.2,3567.1,0.56064]
[1754312181822,0.3024,3567.2,3567.1,0.56064]
[1754312182025,19.166,3567.2,3567.1,0.56064]
[1754312183624,19.4684,3567.2,3567.1,0.56064]
[1754312184126,0.6032,3567.1,3567.0,0.56065]
[1754312184432,2.30036,3567.0,3566.9,3.2078]
[1754312184621,2.30036,3567.0,3566.2,1.40194]
[1754312184622,1.0369,3566.9,3566.8,0.56068]
[1754312184824,20.9037,3566.9,3566.8,0.56068]
[1754312185732,19.9021,3566.9,3566.8,0.56068]
[1754312185930,19.4664,3566.9,3566.8,0.56068]
[1754312186534,20.47,3566.9,3566.8,0.56068]
[1754312186733,20.9037,3566.9,3566.8,0.56068]
[1754312187226,20.47,3566.9,3566.8,0.56068]
[1754312187427,19.4664,3566.9,3566.8,0.56068]
[1754312187825,19.164,3566.9,3566.8,0.56068]
[1754312188527,19.4664,3566.9,3566.8,0.56068]
[1754312189233,19.163,3567.1,3567.0,0.56066]
[1754312189433,0.3024,3567.3,3567.2,0.56062]
[1754312189737,19.4654,3567.3,3567.2,0.56062]
[1754312191731,19.163,3567.3,3567.2,0.56062]
[1754312192232,19.4654,3567.3,3567.2,0.56062]
[1754312192930,0.3024,3567.6,3567.5,0.56058]
[1754312196231,4.5138,3568.4,3568.3,0.56045]
[1754312196427,3.5102,3568.4,3568.3,0.56045]
[1754312196629,1.5385,3568.8,3568.7,0.56039]
[1754312196938,20.8987,3568.8,3568.7,0.56039]
[1754312199238,20.8967,3568.8,3568.7,0.56039]
[1754312200334,20.9064,3568.8,3568.7,0.56039]
[1754312204730,1.7494,3568.8,3568.7,0.56039]
[1754312204931,1.0975,3568.8,3568.7,0.56039]
[1754312205239,3.76807,3569.5,3568.7,0.56039]
[1754312205240,0.2935,3569.2,3569.1,0.56033]
[1754312205437,19.9451,3569.2,3569.1,0.56033]
[1754312206138,19.6516,3569.2,3569.1,0.56033]
[1754312206538,19.9451,3569.2,3569.1,0.56033]
[1754312207341,0.4434,3569.4,3569.1,0.56033]
[1754312207537,1.4369,3570.0,3569.9,0.7736]
[1754312207738,20.5909,3570.0,3569.9,0.7736]
[1754312208838,20.5889,3570.0,3569.9,0.7736]
[1754312209537,20.1455,3570.0,3569.9,0.7736]
[1754312209734,20.884,3570.0,3569.9,0.7736]
[1754312209936,20.884,3570.0,3569.9,1.0666]
[1754312210342,20.884,3570.0,3569.9,0.5602]
[1754312211443,20.884,3570.0,3569.9,0.7736]
[1754312211948,20.881,3570.0,3569.9,0.7736]
[1754312212141,0.7,3569.8,3569.7,3.2078]
[1754312212343,1.732,3569.7,3569.6,0.56024]
[1754312212740,1.26025,3569.6,3569.5,0.56026]
[1754312213045,20.881,3569.6,3569.5,0.56026]
[1754312213747,20.881,3569.6,3569.5,1.06666]
[1754312214250,19.939,3569.6,3569.5,1.06666]
[1754312214444,20.88,3569.6,3569.5,1.06666]
[1754312215339,20.88,3569.6,3569.5,0.77366]
[1754312215837,20.88,3569.6,3569.5,1.06666]
[1754312218647,19.148,3569.6,3569.5,1.06666]
[1754312218850,19.4415,3569.6,3569.5,1.06666]
[1754312219250,20.2341,3569.6,3569.5,1.06666]
[1754312219546,20.88,3569.6,3569.5,1.06666]
[1754312220154,20.1415,3569.6,3569.5,1.06666]
[1754312220652,19.146,3569.6,3569.5,1.06666]
[1754312221146,19.4395,3569.6,3569.5,1.06666]
[1754312221643,19.937,3569.6,3569.5,1.06666]
[1754312221848,0.791,3569.6,3569.5,1.06666]
[1754312223055,1.732,3569.6,3569.5,1.06666]
[1754312223244,1.732,3569.6,3569.3,3.2078]
[1754312223245,20.14,3569.8,3569.7,1.06663]
[1754312223845,20.878,3569.8,3569.7,1.06663]
[1754312224642,19.146,3569.8,3569.7,1.06663]
[1754312224846,1.99869,3570.0,3569.9,1.06659]
[1754312225053,20.5825,3570.0,3569.9,1.06659]
[1754312225446,20.876,3570.0,3569.9,0.56019]
[1754312225846,20.876,3570.0,3569.9,0.77359]
[1754312226350,20.876,3570.0,3569.9,1.06659]
[1754312229448,1.732,3570.0,3569.9,1.06659]
[1754312230056,20.874,3570.0,3569.9,1.06659]
[1754312230257,20.1355,3570.0,3569.9,1.06659]
[1754312232057,2.00742518,3571.0,3570.9,0.56004]
[1754312232058,2.4851,3571.0,3570.9,0.56004]
[1754312232259,3.6831689,3571.0,3570.9,3.97984]
[1754312232462,22.08802048,3571.0,3570.9,4.28694]
[1754312232655,22.08802048,3571.0,3570.9,4.78254]
[1754312232852,22.08802048,3571.0,3570.9,4.58074]
[1754312233657,21.9417,3571.0,3570.9,4.58074]
[1754312233859,2.8007,3571.0,3570.9,4.58074]
[1754312234051,21.9417,3571.0,3570.9,4.58074]
[1754312234351,2.0249,3571.0,3570.9,5.07634]
[1754312234550,21.9417,3571.0,3570.9,5.20014]
[1754312234753,2.8007,3571.0,3570.9,5.20014]
[1754312235356,0.43111,3571.0,3570.9,5.20014]
[1754312236253,0.73731,3571.0,3570.9,5.20014]
[1754312236460,0.43111,3571.0,3570.9,5.20014]
[1754312236659,1.1789,3571.5,3571.4,0.77197]
[1754312236860,19.5992,3571.7,3571.6,0.55993]
[1754312237153,0.5243,3571.7,3571.6,1.99223]
[1754312237360,1.8007,3571.7,3571.6,1.99223]
[1754312238554,1.4851,3571.7,3571.6,1.99223]
[1754312238955,1.8007,3571.7,3571.6,1.99223]
[1754312239454,1.8007,3571.7,3571.6,0.55993]
[1754312239655,1.8007,3571.7,3571.6,1.37283]
[1754312239852,1.8007,3571.7,3571.5,3.2078]
[1754312239853,0.55995,3571.6,3571.5,3.2078]
[1754312240059,0.7187,3571.0,3570.9,3.97986]
[1754312240264,1.8007,3571.0,3570.9,3.76786]
[1754312240854,1.8007,3571.0,3570.9,3.2078]
[1754312242556,1.4851,3571.0,3570.9,4.6401]
[1754312242857,1.0249,3571.0,3570.9,4.6401]
[1754312243358,20.9347,3571.4,3571.3,0.5191]
[1754312243559,20.9347,3571.4,3571.3,0.212]
[1754312243861,20.9347,3571.4,3571.3,0.772]
[1754312244166,20.9347,3571.4,3571.3,1.0791]
[1754312244363,20.4745,3571.4,3571.3,1.0791]
[1754312244564,20.9347,3571.4,3571.3,1.0791]
[1754312245353,20.9347,3571.4,3571.3,0.56]
[1754312245664,20.9347,3571.4,3571.3,1.0791]
[1754312245865,20.9347,3571.4,3571.3,1.8685]
[1754312246064,20.6191,3571.4,3571.3,1.9923]
[1754312246466,1.4851,3571.4,3571.3,1.9923]
[1754312247663,1.8007,3571.4,3571.3,1.9923]
[1754312247966,1.8007,3571.4,3571.3,1.8685]
[1754312248961,1.3405,3571.0,3570.9,3.76787]
[1754312249160,1.8007,3570.6,3570.5,0.56013]
[1754312249568,1.8007,3570.6,3570.5,0.77213]
[1754312249769,1.8007,3570.6,3570.5,1.07923]
[1754312250465,3.2078,3571.0,3570.4,3.2078]
[1754312250673,1.4945,3571.2,3571.1,0.77203]
[1754312250873,1.8007,3571.2,3571.1,1.07913]
[1754312251376,1.8007,3571.2,3571.1,1.99233]
[1754312252173,1.8007,3571.2,3571.1,1.86853]
[1754312252877,4.2327,3571.4,3571.3,1.6985]
[1754312253076,5.0085,3571.4,3571.3,1.9923]
[1754312253277,1.8007,3571.4,3571.3,1.9923]
[1754312253584,1.4851,3571.4,3571.3,1.9923]
[1754312254277,0.8305,3571.4,3571.3,1.9923]
[1754312254477,1.4851,3571.4,3571.3,1.9923]
[1754312254871,1.8007,3571.4,3571.3,1.8685]
[1754312255077,1.8007,3571.4,3571.3,0.772]
[1754312255380,1.8007,3571.4,3571.3,0.56]
[1754312255780,1.8007,3571.4,3571.3,0.772]
[1754312256083,1.8007,3571.4,3571.3,1.0791]
[1754312256983,1.8007,3571.4,3571.3,0.56]
[1754312257885,1.4869,3571.4,3571.3,1.0791]
[1754312258078,1.4869,3571.4,3571.3,1.9923]
[1754312258079,1.4851,3571.4,3571.3,1.9923]
[1754312258474,1.0249,3571.4,3571.3,1.9923]
[1754312258680,1.4851,3571.4,3571.3,1.9923]
[1754312258883,1.8007,3571.4,3571.3,1.9923]
[1754312259382,0.3062,3571.6,3571.5,1.78027]
[1754312259681,1.0249,3571.6,3571.5,5.20007]
[1754312259884,1.4851,3571.6,3571.5,5.20007]
[1754312260079,1.8038,3571.6,3571.5,5.20007]
[1754312261283,19.131,3571.7,3571.5,5.07627]
[1754312261477,20.5829,3571.7,3571.6,1.4064]
[1754312261676,19.8269,3571.7,3571.6,1.4064]
[1754312261982,0.6959,3571.7,3571.6,1.4064]
[1754312262181,1.0051,3571.7,3571.6,1.4064]
[1754312262481,0.8075,3571.7,3571.6,1.4064]
[1754312262679,1.0051,3571.7,3571.6,1.4064]
[1754312262885,1.4519,3571.7,3571.6,1.4064]
[1754312263086,1.7706,3571.7,3571.6,1.2827]
[1754312263382,0.9451,3571.7,3571.6,1.4064]
[1754312263575,1.2543,3571.7,3571.6,1.4064]
[1754312263973,1.4519,3571.7,3571.6,1.4064]
[1754312264678,19.3276,3572.1,3572.0,0.55989]
[1754312264884,19.6368,3572.1,3572.0,1.96629]
[1754312265385,0.5068,3572.1,3572.0,1.96629]
[1754312265886,1.4519,3572.1,3572.0,1.96629]
[1754312266876,1.7706,3572.4,3572.3,1.05954]
[1754312267080,1.7706,3572.4,3572.3,1.35324]
[1754312267484,1.7706,3572.4,3572.3,1.84254]
[1754312267685,1.7706,3572.4,3572.3,1.96624]
[1754312268490,1.7706,3572.4,3572.3,1.84254]
[1754312270478,4.9784,3572.9,3572.8,0.55977]
[1754312270985,0.6959,3573.4,3572.9,1.39938]
[1754312271184,0.6959,3573.4,3572.7,3.5101]
[1754312271185,1.4519,3572.8,3572.7,4.46498]
[1754312271382,1.7706,3572.8,3572.7,4.75658]
[1754312271586,1.4519,3572.8,3572.7,5.17398]
[1754312271888,1.7706,3573.4,3573.3,0.55968]
[1754312272181,1.7706,3573.4,3573.3,1.05938]
[1754312272585,1.4519,3573.4,3573.3,0.55968]
[1754312272780,1.7706,3573.4,3573.3,0.55968]
[1754312273181,0.1946,3573.3,3573.2,0.5597]
[1754312273389,1.7706,3573.3,3573.2,0.5597]
[1754312273775,0.6959,3572.9,3572.8,0.4997]
[1754312274077,1.7706,3573.2,3573.1,0.55971]
[1754312275091,1.25562,3573.1,3573.0,0.55973]
[1754312275386,1.7706,3572.7,3572.6,0.55979]
[1754312275786,1.7706,3572.7,3572.6,1.05949]
[1754312276288,1.7706,3572.7,3572.6,0.55979]
[1754312276489,1.7706,3572.7,3572.6,0.75719]
[1754312276690,1.7706,3572.7,3572.6,1.05949]
[1754312277087,1.7706,3572.7,3572.6,0.75719]
[1754312277586,1.7706,3572.7,3572.6,1.05949]
[1754312278191,1.7706,3572.7,3572.6,0.55979]
[1754312279691,1.2557,3572.6,3572.5,0.5598]
[1754312279890,1.7706,3572.6,3572.5,0.5598]
[1754312280391,1.7706,3572.4,3571.7,0.2923]
[1754312280591,1.7706,3571.9,3571.8,3.2078]
[1754312281095,1.7706,3571.9,3571.8,3.76772]
[1754312281393,1.7706,3571.9,3571.8,4.26742]
[1754312281589,1.7706,3571.9,3571.8,5.04782]
[1754312281790,1.7706,3571.9,3571.8,5.17062]
[1754312282095,1.7706,3571.9,3571.8,4.26742]
[1754312282692,1.7706,3571.9,3571.8,3.76772]
[1754312282983,1.4519,3571.9,3571.8,5.17062]
[1754312283184,0.7505,3572.1,3572.0,1.04889]
[1754312283384,19.123,3572.2,3572.0,1.96279]
[1754312283588,20.5749,3572.2,3572.1,0.7813]
[1754312283786,20.8936,3572.2,3572.1,0.4997]
[1754312283994,20.5749,3572.2,3572.1,0.9878]
[1754312284192,20.0831,3572.5,3572.4,0.4997]
[1754312284390,20.5844,3572.5,3572.4,0.4997]
[1754312284692,20.8936,3572.5,3572.4,0.4997]
[1754312284895,20.8936,3572.5,3572.4,1.4029]
[1754312285088,20.5749,3572.5,3572.4,1.4029]
[1754312285292,19.4267,3572.5,3572.4,1.4029]
[1754312285489,19.123,3572.5,3572.4,1.4029]
[1754312285688,3.76753,3573.1,3572.4,1.39955]
[1754312285892,20.8936,3573.0,3572.9,1.36805]
[1754312286399,20.8936,3573.0,3572.9,1.67035]
[1754312286600,20.8936,3573.0,3572.9,1.83985]
[1754312286893,20.8936,3573.0,3572.9,0.55975]
[1754312287097,1.37029,3572.7,3572.6,0.55978]
[1754312287293,1.7706,3572.7,3572.6,0.55978]
[1754312287694,1.7706,3572.3,3572.2,0.55986]
[1754312288485,0.7505,3572.3,3572.2,0.55986]
[1754312288800,20.5749,3572.5,3572.4,1.4029]
[1754312289098,20.8936,3572.5,3572.4,1.4029]
[1754312289298,20.8936,3572.5,3572.4,1.2801]
[1754312289994,19.123,3572.5,3572.4,1.2801]
[1754312290190,20.4341,3572.5,3572.4,1.4024]
[1754312290390,1.0558,3572.4,3571.4,1.39996]
[1754312290590,1.4561,3571.9,3571.8,4.76682]
[1754312290794,0.8143,3571.9,3571.8,4.88912]
[1754312290995,3.2078,3572.7,3571.9,1.39978]
[1754312291196,0.6963,3572.2,3572.1,0.7052]
[1754312291391,1.7521,3572.2,3572.1,1.26507]
[1754312291595,0.9633,3572.2,3572.1,1.68127]
[1754312291792,0.3188,3572.3,3571.8,3.2078]
[1754312291992,1.0151,3571.9,3571.8,5.18612]
[1754312292203,1.0151,3571.9,3571.8,5.06382]
[1754312292398,1.7521,3571.9,3571.8,4.27512]
[1754312292599,1.7521,3571.9,3571.8,5.06382]
[1754312292800,0.3188,3571.9,3571.8,5.18612]
[1754312293591,0.441,3572.2,3571.8,5.18612]
[1754312293592,1.7521,3572.2,3572.1,1.97828]
[1754312293791,1.0151,3572.2,3572.1,1.97828]
[1754312294101,0.6963,3572.8,3572.7,0.77017]
[1754312294403,2.63491891,3572.8,3572.7,1.06717]
[1754312294903,2.63491891,3572.8,3572.7,0.77017]
[1754312295101,2.63491891,3572.8,3572.7,1.06717]
[1754312295405,2.63491891,3572.8,3572.7,0.55977]
[1754312295706,1.7521,3572.8,3572.7,0.55977]
[1754312295901,0.4955,3572.5,3572.4,0.85683]
[1754312296106,1.7521,3572.5,3572.4,0.55983]
[1754312296409,19.142,3572.9,3572.1,1.3997]
[1754312296699,2.31188,3572.8,3572.7,0.2104]
[1754312296899,0.6963,3572.6,3572.4,0.55982]
[1754312297099,1.7521,3572.5,3572.4,0.55982]
[1754312297402,1.7521,3572.4,3572.3,0.55984]
[1754312297805,1.7521,3572.4,3572.3,0.77024]
[1754312298107,19.8583,3572.4,3572.2,0.55985]
[1754312298300,1.7521,3572.3,3572.2,0.55985]
[1754312299014,19.162,3572.4,3572.1,0.55987]
[1754312299015,1.0558,3572.2,3572.1,0.55987]
[1754312299200,1.7521,3572.2,3572.1,0.77027]
[1754312299800,19.8543,3572.3,3572.2,0.7065]
[1754312300002,20.1731,3572.3,3572.2,1.97826]
[1754312300203,20.6141,3572.3,3572.2,1.97826]
[1754312300606,20.9101,3572.3,3572.2,1.97826]
[1754312300810,20.9101,3572.3,3572.2,1.06726]
[1754312301906,1.3111,3572.2,3572.1,0.55986]
[1754312302104,1.7521,3572.2,3572.1,0.55986]
[1754312302609,1.7521,3572.1,3572.0,0.77028]
[1754312302811,1.7521,3572.1,3572.0,1.06728]
[1754312303406,1.7521,3572.1,3572.0,0.77028]
[1754312304314,1.7521,3572.1,3572.0,1.06728]
[1754312304507,1.61567,3572.2,3572.1,0.77026]
[1754312304812,2.31197,3572.2,3572.1,1.06726]
[1754312305008,1.7521,3572.2,3572.1,1.06726]
[1754312305811,1.7521,3572.2,3572.1,0.77026]
[1754312306112,1.7521,3572.2,3572.1,1.85596]
[1754312306311,1.7521,3572.2,3572.1,1.97826]
[1754312306611,0.8143,3572.2,3572.1,1.97826]
[1754312307114,1.0151,3572.2,3572.1,1.97826]
[1754312307314,1.4561,3572.2,3572.1,1.97826]
[1754312310210,1.7521,3572.2,3572.1,1.97826]
[1754312310715,1.7521,3572.2,3572.1,0.77026]
[1754312310915,1.7521,3572.2,3572.1,1.06726]
[1754312311111,0.55988,3572.1,3572.0,0.55988]
[1754312311314,1.7521,3572.1,3572.0,1.35988]
[1754312312012,1.7521,3572.1,3572.0,0.55988]
[1754312312412,0.4928,3571.9,3571.8,3.4182]
[1754312312708,19.154,3571.9,3571.8,4.27512]
[1754312312909,19.154,3571.9,3571.8,5.18612]
[1754312313109,0.441,3572.2,3572.1,0.55988]
[1754312313315,19.9656,3572.2,3572.1,1.97828]
[1754312313616,20.70311423,3572.2,3572.1,1.97828]
[1754312313809,19.9656,3572.2,3572.1,1.97828]
[1754312314217,0.8116,3572.2,3572.1,1.97828]
[1754312314518,5.51969,3572.7,3572.6,1.3598]
[1754312314818,23.24775049,3572.7,3572.6,1.9782]
[1754312315015,21.49605049,3572.7,3572.6,1.9782]
[1754312315316,20.35875049,3572.7,3572.6,1.9782]
[1754312315513,21.05505049,3572.7,3572.6,1.9782]
[1754312315712,21.49605049,3572.7,3572.6,1.9782]
[1754312315912,21.49605049,3572.7,3572.6,1.8559]
[1754312316115,21.79205049,3572.7,3572.6,1.8559]
[1754312316315,21.79205049,3572.7,3572.6,1.9782]
[1754312316712,21.49605049,3572.7,3572.6,1.9782]
[1754312317314,21.49205049,3572.7,3572.6,1.9782]
[1754312317715,21.78805049,3572.7,3572.6,1.9782]
[1754312317920,21.78805049,3572.7,3572.6,1.0672]
[1754312319222,21.78805049,3572.7,3572.6,1.9782]
[1754312319721,21.64156983,3572.7,3572.6,1.9782]
[1754312319922,20.9041,3572.7,3572.6,1.9782]
[1754312321320,20.9041,3572.7,3572.6,1.8559]
[1754312321518,1.0131,3572.3,3572.2,3.714]
[1754312321823,1.481,3572.3,3572.2,2.14976]
[1754312322119,0.97757,3572.8,3572.7,1.06597]
[1754312322323,21.51437,3572.8,3572.7,1.83027]
[1754312322519,21.83377759,3572.8,3572.7,1.83027]
[1754312323524,20.05117759,3572.8,3572.7,2.02617]
[1754312323724,20.06417759,3572.8,3572.7,2.14967]
[1754312323925,20.06117759,3572.8,3572.7,2.14967]
[1754312324126,0.87917759,3572.8,3572.7,2.14967]
[1754312324319,2.19387759,3573.0,3572.9,0.5062]
[1754312324624,21.37487759,3573.0,3572.9,0.5062]
[1754312324827,21.84277759,3573.0,3572.9,0.1929]
[1754312325620,1.0131,3572.6,3572.5,0.55981]
[1754312325821,20.9626,3572.6,3572.2,0.3098]
[1754312326022,1.7826,3572.5,3572.4,0.55983]
[1754312326322,0.5945,3572.4,3572.3,0.55984]
[1754312326527,1.7826,3572.4,3572.3,2.02624]
[1754312326728,1.7826,3572.4,3572.3,2.14974]
[1754312327125,1.7826,3572.4,3572.3,0.1929]
[1754312327525,1.7826,3572.4,3572.3,0.816]
[1754312327730,1.7826,3572.4,3572.3,1.2705]
[1754312328024,1.7826,3572.4,3572.3,1.4664]
[1754312328327,1.7826,3572.4,3572.3,1.5899]
[1754312328730,1.7826,3572.4,3572.3,1.4664]
[1754312329025,0.2929,3572.6,3572.4,0.86963]
[1754312329230,19.6716,3572.6,3572.5,1.5899]
[1754312329729,20.655,3572.6,3572.5,1.5899]
[1754312330227,20.9566,3572.6,3572.5,1.5899]
[1754312330420,20.9566,3572.6,3572.4,0.55983]
[1754312330421,19.8942,3572.6,3572.4,0.55983]
[1754312330620,1.7826,3572.5,3572.4,2.02623]
[1754312330821,0.8,3572.5,3572.4,2.14973]
[1754312331028,0.4976,3572.5,3572.4,2.14973]
[1754312332341,19.174,3572.6,3572.4,2.14973]
[1754312332540,19.4669,3572.6,3572.5,1.5899]
[1754312332838,0.55975,3573.0,3572.2,3.2078]
[1754312332839,40.6029,3573.2,3573.1,0.5062]
[1754312333039,61.42309281,3573.2,3573.1,1.2705]
[1754312333239,61.27512562,3573.2,3573.1,1.2705]
[1754312334229,61.27512562,3573.2,3573.1,0.816]
[1754312334433,60.21272562,3573.2,3573.1,0.816]
[1754312334639,60.97352562,3573.2,3573.1,1.5899]
[1754312334839,21.68532562,3573.2,3573.1,1.5899]
[1754312335140,21.68532562,3573.2,3573.1,1.4664]
[1754312335543,21.68532562,3573.2,3573.1,1.2705]
[1754312335943,21.68532562,3573.2,3573.1,1.4664]
[1754312336143,21.68532562,3573.2,3573.1,1.5899]
[1754312339741,21.68532562,3573.2,3573.1,1.4664]
[1754312340446,21.68532562,3573.2,3573.1,1.2705]
[1754312340642,21.68532562,3573.2,3573.1,0.7678]
[1754312340843,21.18263562,3573.2,3573.0,3.76753]
[1754312341044,2.51532562,3573.1,3573.0,3.76753]
[1754312341239,1.7826,3573.1,3573.0,4.58353]
[1754312341544,1.7826,3573.1,3573.0,5.03803]
[1754312342545,1.7826,3573.1,3573.0,0.75263]
[1754312342752,1.7826,3572.7,3572.6,1.2705]
[1754312343146,20.9416,3572.7,3572.6,1.066]
[1754312343349,20.9416,3572.7,3572.6,1.8303]
[1754312345649,20.9416,3572.7,3572.6,0.7527]
[1754312345853,20.9416,3572.7,3572.6,1.0625]
[1754312346148,20.9416,3572.7,3572.6,0.5027]
[1754312346354,2.3424,3572.6,3572.5,0.7527]
[1754312346549,2.3424,3572.6,3572.5,1.0625]
[1754312346744,2.3424,3572.6,3572.5,0.5027]
[1754312347444,2.3424,3572.6,3572.5,0.9572]
[1754312347850,1.7826,3572.6,3572.5,1.5899]
[1754312348048,0.4976,3572.6,3572.5,1.5899]
[1754312348249,19.4519,3572.7,3572.6,2.1497]
[1754312348853,20.01168,3572.7,3572.6,2.1497]
[1754312349049,5.25723,3573.1,3573.0,0.7021]
[1754312349253,6.13762971,3573.1,3573.0,1.5899]
[1754312349447,23.24019971,3573.1,3573.0,1.2705]
[1754312349648,24.25329971,3573.1,3573.0,1.5899]
[1754312349847,23.9886623,3573.1,3573.0,1.5899]
[1754312350049,24.2902623,3573.1,3573.0,1.5899]
[1754312350249,24.1404,3573.1,3573.0,1.5899]
[1754312351255,19.6655,3573.1,3573.0,1.5899]
[1754312351456,20.1382,3573.1,3573.0,1.5899]
[1754312351755,20.8725,3573.1,3573.0,1.2705]
[1754312353649,20.8725,3573.1,3573.0,0.816]
[1754312354154,20.8725,3573.1,3573.0,1.281]
[1754312354354,20.8725,3573.1,3573.0,1.4786]
[1754312354556,20.8725,3573.1,3573.0,1.6021]
[1754312355255,20.5832,3573.1,3573.0,1.6021]
[1754312355857,20.8725,3573.1,3573.0,1.6021]
[1754312356958,20.8725,3573.1,3573.0,0.5062]
[1754312357158,20.8725,3573.1,3573.0,0.1929]
[1754312357362,20.8725,3573.1,3573.0,0.4914]
[1754312357557,20.8725,3573.1,3573.0,1.2583]
[1754312357760,20.40733,3573.1,3572.9,0.85825]
[1754312357959,1.4332,3573.0,3572.9,0.55975]
[1754312358256,1.7225,3573.0,3572.9,0.55975]
[1754312358454,1.7225,3573.0,3572.9,1.82145]
[1754312358653,1.7225,3573.0,3572.9,2.01905]
[1754312358852,1.7225,3573.0,3572.9,2.14255]
[1754312359453,0.2623,3572.9,3571.9,5.72559251]
[1754312359659,0.2623,3572.9,3571.5,6.3173811]
[1754312359660,1.1426,3572.4,3572.3,1.56734]
[1754312359959,1.40868,3572.8,3572.7,0.75608]